[Event "*** Titled Tuesday 3|2 Blitz"]
[Site "Chess.com"]
[Date "2017.05.02"]
[Round "2"]
[White "joppie2"]
[Black "bancsoo"]
[Result "0-1"]
[WhiteElo "2525"]
[BlackElo "2579"]
[TimeControl "180+2"]
[EndTime "13:23:15 PDT"]
[Termination "bancsoo won on time"]

1. d4 {[%clk 0:03:00.2]} 1... d5 {[%clk 0:03:00.3]} 2. Bf4 {[%clk 0:02:59.5]}
2... Nf6 {[%clk 0:02:58.8]} 3. Nf3 {[%clk 0:03:00.6]} 3... c5 {[%clk 0:02:59.9]}
4. e3 {[%clk 0:03:01.7]} 4... Nc6 {[%clk 0:03:01.1]} 5. Nbd2 {[%clk 0:03:02.9]}
5... e6 {[%clk 0:03:00.5]} 6. c3 {[%clk 0:03:04.2]} 6... Nh5 {[%clk 0:03:01.3]}
7. Be5 {[%clk 0:02:57.4]} 7... f6 {[%clk 0:03:01.8]} 8. Bg3 {[%clk 0:02:56.4]}
8... Be7 {[%clk 0:03:01.7]} 9. Bd3 {[%clk 0:02:55.3]} 9... Bd7 {[%clk
0:02:59.4]} 10. Nh4 {[%clk 0:02:46.9]} 10... Nxg3 {[%clk 0:02:53.9]} 11. hxg3
{[%clk 0:02:48.8]} 11... Qb6 {[%clk 0:02:19.6]} 12. Ng6 {[%clk 0:02:32.6]} 12...
Rg8 {[%clk 0:02:17.1]} 13. Nxe7 {[%clk 0:02:34.2]} 13... Kxe7 {[%clk 0:02:17.3]}
14. Rb1 {[%clk 0:02:12.3]} 14... h6 {[%clk 0:02:14.7]} 15. O-O {[%clk
0:02:10.6]} 15... f5 {[%clk 0:02:09.1]} 16. b4 {[%clk 0:02:06.2]} 16... cxb4
{[%clk 0:01:57.1]} 17. cxb4 {[%clk 0:02:06.7]} 17... Rac8 {[%clk 0:01:55.1]} 18.
Qb3 {[%clk 0:02:04.5]} 18... Nd8 {[%clk 0:01:54.7]} 19. Nf3 {[%clk 0:02:03.7]}
19... Nf7 {[%clk 0:01:54.8]} 20. a4 {[%clk 0:01:53]} 20... Qd6 {[%clk
0:01:55.1]} 21. Rfc1 {[%clk 0:01:51.1]} 21... g5 {[%clk 0:01:53.7]} 22. Qb2
{[%clk 0:01:46.7]} 22... Rxc1+ {[%clk 0:01:51.7]} 23. Rxc1 {[%clk 0:01:47.7]}
23... Rc8 {[%clk 0:01:53.4]} 24. Rxc8 {[%clk 0:01:46.9]} 24... Bxc8 {[%clk
0:01:54.5]} 25. Ne5 {[%clk 0:01:48]} 25... Bd7 {[%clk 0:01:49]} 26. a5 {[%clk
0:01:45.4]} 26... Be8 {[%clk 0:01:42.3]} 27. Qc3 {[%clk 0:01:42.7]} 27... Nxe5
{[%clk 0:01:41.1]} 28. dxe5 {[%clk 0:01:44.6]} 28... Qc6 {[%clk 0:01:42]} 29.
Qd4 {[%clk 0:01:41.1]} 29... b6 {[%clk 0:01:38.5]} 30. Kh2 {[%clk 0:01:33]}
30... Kd8 {[%clk 0:01:37.2]} 31. b5 {[%clk 0:01:24.4]} 31... Qc5 {[%clk
0:01:35.5]} 32. Qa4 {[%clk 0:01:14.1]} 32... a6 {[%clk 0:01:22.4]} 33. axb6
{[%clk 0:01:15]} 33... Bxb5 {[%clk 0:01:23.1]} 34. Bxb5 {[%clk 0:00:36.4]} 34...
Qxb5 {[%clk 0:01:23.5]} 35. Qa3 {[%clk 0:00:37.5]} 35... Qxb6 {[%clk 0:01:14.5]}
36. Qf8+ {[%clk 0:00:37.7]} 36... Kc7 {[%clk 0:01:15.5]} 37. Qxh6 {[%clk
0:00:37.6]} 37... g4 {[%clk 0:01:06.1]} 38. Qf6 {[%clk 0:00:37.5]} 38... Qc6
{[%clk 0:01:06.5]} 39. f3 {[%clk 0:00:34.9]} 39... a5 {[%clk 0:01:05]} 40. fxg4
{[%clk 0:00:28.6]} 40... fxg4 {[%clk 0:01:06.1]} 41. Qg7+ {[%clk 0:00:30.2]}
41... Kb6 {[%clk 0:01:07.1]} 42. Qxg4 {[%clk 0:00:32.1]} 42... a4 {[%clk
0:01:04.5]} 43. Qb4+ {[%clk 0:00:33]} 43... Qb5 {[%clk 0:01:01.5]} 44. Qd6+
{[%clk 0:00:34.1]} 44... Ka5 {[%clk 0:00:59.4]} 45. Qxe6 {[%clk 0:00:34.3]}
45... a3 {[%clk 0:01:00.3]} 46. Qd6 {[%clk 0:00:30.4]} 46... Ka4 {[%clk
0:00:55]} 47. e6 {[%clk 0:00:28.8]} 47... a2 {[%clk 0:00:56.1]} 48. Qe5 {[%clk
0:00:29.8]} 48... Kb3 {[%clk 0:00:44.3]} 49. e7 {[%clk 0:00:30.5]} 49... Qe8
{[%clk 0:00:45.6]} 50. Qxd5+ {[%clk 0:00:24.7]} 50... Kb2 {[%clk 0:00:46.6]} 51.
Qe5+ {[%clk 0:00:18.7]} 51... Kb1 {[%clk 0:00:47.3]} 52. Qf5+ {[%clk 0:00:20.1]}
52... Kb2 {[%clk 0:00:45]} 53. Qf6+ {[%clk 0:00:21.2]} 53... Kb1 {[%clk
0:00:45.6]} 54. Qf5+ {[%clk 0:00:19.5]} 54... Kc1 {[%clk 0:00:44.8]} 55. Qf6
{[%clk 0:00:10.6]} 55... Kb1 {[%clk 0:00:45.1]} 56. Qf5+ {[%clk 0:00:11.3]}
56... Kb2 {[%clk 0:00:45.8]} 57. Qf6+ {[%clk 0:00:10.1]} 57... Kb1 {[%clk
0:00:46.8]} 58. Qf8 {[%clk 0:00:11.4]} 58... Qh5+ {[%clk 0:00:46.5]} 59. Kg1
{[%clk 0:00:12.7]} 59... a1=Q {[%clk 0:00:23.3]} 60. Qf2 {[%clk 0:00:08.3]}
60... Qe8 {[%clk 0:00:20.6]} 61. Qf8 {[%clk 0:00:07.1]} 61... Ka2+ {[%clk
0:00:20.1]} 62. Kf2 {[%clk 0:00:07.3]} 62... Qb2+ {[%clk 0:00:21.2]} 63. Kf3
{[%clk 0:00:05.8]} 63... Qb7+ {[%clk 0:00:22.2]} 64. Ke2 {[%clk 0:00:05]} 64...
Qbxe7 {[%clk 0:00:23]} 65. Qf4 {[%clk 0:00:06.4]} 65... Qe4 {[%clk 0:00:23.4]}
0-1

[Event "*** Titled Tuesday 3|2 Blitz"]
[Site "Chess.com"]
[Date "2017.05.02"]
[Round "2"]
[White "David_Klein"]
[Black "Noukii"]
[Result "1-0"]
[WhiteElo "2497"]
[BlackElo "2638"]
[TimeControl "180+2"]
[EndTime "13:23:29 PDT"]
[Termination "David_Klein won by checkmate"]

1. e4 {[%clk 0:03:01.9]} 1... Nf6 {[%clk 0:02:56.9]} 2. e5 {[%clk 0:02:59.7]}
2... Nd5 {[%clk 0:02:58.2]} 3. d4 {[%clk 0:03:00.7]} 3... d6 {[%clk 0:02:59.4]}
4. Nf3 {[%clk 0:03:01.1]} 4... g6 {[%clk 0:03:00.5]} 5. h3 {[%clk 0:02:57]} 5...
Bg7 {[%clk 0:03:01.3]} 6. Bc4 {[%clk 0:02:58.1]} 6... Nb6 {[%clk 0:03:02.3]} 7.
Bb3 {[%clk 0:02:59.3]} 7... dxe5 {[%clk 0:03:03.7]} 8. Nxe5 {[%clk 0:02:59.4]}
8... Bxe5 {[%clk 0:03:04.6]} 9. dxe5 {[%clk 0:03:01.3]} 9... Qxd1+ {[%clk
0:03:06.2]} 10. Kxd1 {[%clk 0:03:03.2]} 10... Na6 {[%clk 0:02:57.2]} 11. Nc3
{[%clk 0:02:57.6]} 11... Bd7 {[%clk 0:02:52.3]} 12. Bg5 {[%clk 0:02:54.3]} 12...
h6 {[%clk 0:02:49.5]} 13. Be3 {[%clk 0:02:53]} 13... Bc6 {[%clk 0:02:45.3]} 14.
f3 {[%clk 0:02:53.1]} 14... e6 {[%clk 0:02:41.4]} 15. Ke2 {[%clk 0:02:50.7]}
15... Nb4 {[%clk 0:02:42.2]} 16. Bd2 {[%clk 0:02:42]} 16... Bd7 {[%clk
0:02:35.4]} 17. Ne4 {[%clk 0:02:36.2]} 17... Nc6 {[%clk 0:02:37]} 18. Nf6+
{[%clk 0:02:33.6]} 18... Ke7 {[%clk 0:02:38.6]} 19. Bc3 {[%clk 0:02:29.5]} 19...
a5 {[%clk 0:02:31.5]} 20. a3 {[%clk 0:02:27.7]} 20... Nb8 {[%clk 0:01:56.5]} 21.
Bd4 {[%clk 0:02:13]} 21... Bb5+ {[%clk 0:01:51.3]} 22. Kf2 {[%clk 0:02:07.3]}
22... N6d7 {[%clk 0:01:46.8]} 23. Rad1 {[%clk 0:02:00.1]} 23... Nc6 {[%clk
0:01:37.8]} 24. Nxd7 {[%clk 0:01:14.3]} 24... Nxd4 {[%clk 0:01:37.6]} 25. Rxd4
{[%clk 0:01:15.8]} 25... Bxd7 {[%clk 0:01:38.2]} 26. Rhd1 {[%clk 0:01:16.2]}
26... Bc6 {[%clk 0:01:36.9]} 27. h4 {[%clk 0:01:14.1]} 27... a4 {[%clk
0:01:34.2]} 28. Bc4 {[%clk 0:01:14.1]} 28... Ra5 {[%clk 0:01:34.8]} 29. f4
{[%clk 0:01:12.4]} 29... g5 {[%clk 0:01:34.8]} 30. g3 {[%clk 0:01:10.8]} 30...
gxh4 {[%clk 0:01:34.6]} 31. gxh4 {[%clk 0:01:11.5]} 31... Rg8 {[%clk 0:01:36.1]}
32. Rg1 {[%clk 0:01:11.9]} 32... Rxg1 {[%clk 0:01:36.8]} 33. Kxg1 {[%clk
0:01:13.8]} 33... Ra8 {[%clk 0:01:32.7]} 34. Kh2 {[%clk 0:00:31.8]} 34... Rg8
{[%clk 0:01:31]} 35. Bd3 {[%clk 0:00:30.1]} 35... Rg2+ {[%clk 0:01:25.8]} 36.
Kh3 {[%clk 0:00:31.4]} 36... Rg1 {[%clk 0:01:21]} 37. Kh2 {[%clk 0:00:29.1]}
37... Rb1 {[%clk 0:01:17.3]} 38. Rb4 {[%clk 0:00:30]} 38... Kd8 {[%clk
0:01:00.6]} 39. Kg3 {[%clk 0:00:30.9]} 39... Ke7 {[%clk 0:00:54.6]} 40. Kg4
{[%clk 0:00:31.2]} 40... Kf8 {[%clk 0:00:52.1]} 41. Kg3 {[%clk 0:00:31.4]} 41...
Kg7 {[%clk 0:00:51.9]} 42. f5 {[%clk 0:00:31.5]} 42... exf5 {[%clk 0:00:47.9]}
43. Bxf5 {[%clk 0:00:33.4]} 43... Re1 {[%clk 0:00:48]} 44. Kf4 {[%clk
0:00:34.6]} 44... Kf8 {[%clk 0:00:43.9]} 45. Bd3 {[%clk 0:00:35.5]} 45... Ke7
{[%clk 0:00:44]} 46. Rd4 {[%clk 0:00:30.4]} 46... Bd7 {[%clk 0:00:41.5]} 47. Rb4
{[%clk 0:00:29.9]} 47... b6 {[%clk 0:00:42.2]} 48. Rc4 {[%clk 0:00:29.7]} 48...
c5 {[%clk 0:00:42.9]} 49. Re4 {[%clk 0:00:30.5]} 49... Rb1 {[%clk 0:00:38]} 50.
Re3 {[%clk 0:00:20.3]} 50... Rxb2 {[%clk 0:00:35.3]} 51. Rg3 {[%clk 0:00:21.2]}
51... Ra2 {[%clk 0:00:29.5]} 52. Be4 {[%clk 0:00:22.2]} 52... b5 {[%clk
0:00:29]} 53. Rc3 {[%clk 0:00:21.7]} 53... c4 {[%clk 0:00:27.7]} 54. Rg3 {[%clk
0:00:22.3]} 54... Be6 {[%clk 0:00:21.4]} 55. Bc6 {[%clk 0:00:23.4]} 55... Rb2
{[%clk 0:00:22.4]} 56. c3 {[%clk 0:00:22.7]} 56... Rb3 {[%clk 0:00:23.4]} 57.
Re3 {[%clk 0:00:22.7]} 57... Kd8 {[%clk 0:00:24.6]} 58. Ke4 {[%clk 0:00:22.7]}
58... Kc7 {[%clk 0:00:26.2]} 59. Be8 {[%clk 0:00:23.9]} 59... Kb6 {[%clk
0:00:26.8]} 60. Kd4 {[%clk 0:00:24.9]} 60... Rxa3 {[%clk 0:00:27.6]} 61. Rf3
{[%clk 0:00:22.1]} 61... Ra1 {[%clk 0:00:27.1]} 62. Bxf7 {[%clk 0:00:23.1]}
62... Rd1+ {[%clk 0:00:28.7]} 63. Ke4 {[%clk 0:00:24.5]} 63... Bd5+ {[%clk
0:00:29.8]} 64. Bxd5 {[%clk 0:00:25.1]} 64... a3 {[%clk 0:00:31.3]} 65. Rf6+
{[%clk 0:00:24.7]} 65... Ka5 {[%clk 0:00:28.5]} 66. Rf8 {[%clk 0:00:25.6]} 66...
Ka4 {[%clk 0:00:29.1]} 67. e6 {[%clk 0:00:23.4]} 67... a2 {[%clk 0:00:29.8]} 68.
Ra8+ {[%clk 0:00:24.2]} 68... Kb3 {[%clk 0:00:31.4]} 69. Ke5 {[%clk 0:00:23.7]}
69... a1=Q {[%clk 0:00:32.3]} 70. Rxa1 {[%clk 0:00:24.9]} 70... Rxa1 {[%clk
0:00:34.2]} 71. e7 {[%clk 0:00:26.5]} 71... Re1+ {[%clk 0:00:34.1]} 72. Be4
{[%clk 0:00:27.7]} 72... Kxc3 {[%clk 0:00:35.6]} 73. e8=Q {[%clk 0:00:28.5]}
73... b4 {[%clk 0:00:37.5]} 74. Qa4 {[%clk 0:00:29.2]} 74... Rc1 {[%clk
0:00:35.2]} 75. Kd5 {[%clk 0:00:25.9]} 75... Re1 {[%clk 0:00:32.2]} 76. Qc2#
{[%clk 0:00:26.6]} 1-0

[Event "*** Titled Tuesday 3|2 Blitz"]
[Site "Chess.com"]
[Date "2017.05.02"]
[Round "2"]
[White "SerGo055"]
[Black "BjarkeSahl"]
[Result "1-0"]
[WhiteElo "2381"]
[BlackElo "2151"]
[TimeControl "180+2"]
[EndTime "13:23:34 PDT"]
[Termination "SerGo055 won by resignation"]

1. d4 {[%clk 0:03:02]} 1... g6 {[%clk 0:03:00.3]} 2. Nf3 {[%clk 0:03:02.1]} 2...
Bg7 {[%clk 0:03:01.9]} 3. c4 {[%clk 0:03:02.8]} 3... d6 {[%clk 0:03:01.7]} 4.
Nc3 {[%clk 0:03:03.3]} 4... Nd7 {[%clk 0:02:59.7]} 5. Bg5 {[%clk 0:03:02.3]}
5... h6 {[%clk 0:02:56.4]} 6. Bh4 {[%clk 0:03:03.3]} 6... Ngf6 {[%clk
0:02:56.6]} 7. e4 {[%clk 0:03:01.8]} 7... g5 {[%clk 0:02:56.7]} 8. Bg3 {[%clk
0:03:02.4]} 8... Nh5 {[%clk 0:02:58.3]} 9. d5 {[%clk 0:02:49.2]} 9... c5 {[%clk
0:02:54.3]} 10. dxc6 {[%clk 0:02:20.6]} 10... bxc6 {[%clk 0:02:54.6]} 11. Nd4
{[%clk 0:02:21.6]} 11... Nxg3 {[%clk 0:02:52.5]} 12. hxg3 {[%clk 0:02:21.6]}
12... c5 {[%clk 0:02:39.7]} 13. Nf5 {[%clk 0:02:19.4]} 13... Bf6 {[%clk
0:02:19]} 14. Rxh6 {[%clk 0:02:11.7]} 14... Rxh6 {[%clk 0:02:19.5]} 15. Nxh6
{[%clk 0:02:13]} 15... Ne5 {[%clk 0:02:21.1]} 16. Nd5 {[%clk 0:02:02.7]} 16...
Bg7 {[%clk 0:02:07.4]} 17. Nf5 {[%clk 0:02:03.4]} 17... Bxf5 {[%clk 0:01:47.9]}
18. exf5 {[%clk 0:02:03.9]} 18... Qa5+ {[%clk 0:01:49.4]} 19. Qd2 {[%clk
0:02:02.3]} 19... Qxd2+ {[%clk 0:01:49.4]} 20. Kxd2 {[%clk 0:02:02.1]} 20... Rb8
{[%clk 0:01:50.2]} 21. Rb1 {[%clk 0:01:50.8]} 21... e6 {[%clk 0:01:38.8]} 22.
fxe6 {[%clk 0:01:33.2]} 22... fxe6 {[%clk 0:01:39.3]} 23. Ne3 {[%clk 0:01:34.7]}
23... g4 {[%clk 0:01:36.7]} 24. Be2 {[%clk 0:01:34.5]} 24... Bh6 {[%clk
0:01:37.5]} 25. b3 {[%clk 0:01:34]} 25... Ke7 {[%clk 0:01:28.1]} 26. Rh1 {[%clk
0:01:27.1]} 26... Bg5 {[%clk 0:01:20.4]} 27. Rh7+ {[%clk 0:01:19.9]} 27... Kf6
{[%clk 0:01:21.7]} 28. f4 {[%clk 0:01:13.3]} 28... gxf3 {[%clk 0:01:20]} 29.
gxf3 {[%clk 0:01:14.2]} 29... Bxe3+ {[%clk 0:01:16.1]} 30. Kxe3 {[%clk
0:01:14.9]} 30... Rg8 {[%clk 0:01:11.3]} 31. f4 {[%clk 0:00:59.8]} 31... Nc6
{[%clk 0:00:50.3]} 32. g4 {[%clk 0:01:00.4]} 32... Rg7 {[%clk 0:00:45]} 33. g5+
{[%clk 0:00:42.9]} 33... Kf7 {[%clk 0:00:42.1]} 34. Bh5+ {[%clk 0:00:40.3]}
34... Kg8 {[%clk 0:00:40.9]} 35. Rh6 {[%clk 0:00:29]} 35... Nd4 {[%clk
0:00:41.8]} 36. Bg4 {[%clk 0:00:25.6]} 36... Re7 {[%clk 0:00:35.6]} 37. Ke4
{[%clk 0:00:26.5]} 37... a5 {[%clk 0:00:34.9]} 38. Rf6 {[%clk 0:00:18.1]} 38...
Kg7 {[%clk 0:00:35.2]} 39. Rh6 {[%clk 0:00:18.9]} 39... Kg8 {[%clk 0:00:35.5]}
40. Bh3 {[%clk 0:00:19.3]} 40... Kg7 {[%clk 0:00:35.9]} 41. Bg4 {[%clk
0:00:19.9]} 41... Kg8 {[%clk 0:00:37]} 42. Rh3 {[%clk 0:00:20.8]} 42... Kg7
{[%clk 0:00:37.6]} 43. a3 {[%clk 0:00:21.5]} 43... Rb7 {[%clk 0:00:36.4]} 44.
Bd1 {[%clk 0:00:19]} 44... Nf5 {[%clk 0:00:30.8]} 45. Rd3 {[%clk 0:00:13.8]}
45... a4 {[%clk 0:00:30.3]} 46. bxa4 {[%clk 0:00:12.9]} 46... Rb1 {[%clk
0:00:22.5]} 47. a5 {[%clk 0:00:13.7]} 47... Nd4 {[%clk 0:00:22.1]} 48. a6 {[%clk
0:00:11.6]} 48... Rb6 {[%clk 0:00:23]} 49. a7 {[%clk 0:00:12]} 49... Ra6 {[%clk
0:00:24.2]} 50. Bh5 {[%clk 0:00:07.7]} 50... Rxa7 {[%clk 0:00:24.7]} 51. Be8
{[%clk 0:00:07.2]} 51... Ra8 {[%clk 0:00:23.7]} 52. Bb5 {[%clk 0:00:07.7]} 52...
Rh8 {[%clk 0:00:22.4]} 53. a4 {[%clk 0:00:08.4]} 53... Rh4 {[%clk 0:00:23.4]}
54. a5 {[%clk 0:00:07.6]} 54... e5 {[%clk 0:00:24.6]} 55. a6 {[%clk 0:00:07.5]}
55... Rxf4+ {[%clk 0:00:25.1]} 56. Kd5 {[%clk 0:00:08.7]} 56... e4 {[%clk
0:00:26]} 57. Re3 {[%clk 0:00:08.9]} 57... Rf5+ {[%clk 0:00:21.3]} 58. Kxd6
{[%clk 0:00:08.3]} 58... Rf7 {[%clk 0:00:18.6]} 59. Rxe4 {[%clk 0:00:08.7]}
59... Nf5+ {[%clk 0:00:16.4]} 60. Kxc5 {[%clk 0:00:09.1]} 1-0

[Event "*** Titled Tuesday 3|2 Blitz"]
[Site "Chess.com"]
[Date "2017.05.02"]
[Round "2"]
[White "the_drake"]
[Black "chessking2151"]
[Result "1/2-1/2"]
[WhiteElo "2204"]
[BlackElo "2343"]
[TimeControl "180+2"]
[EndTime "13:24:02 PDT"]
[Termination "Game drawn by agreement"]

1. e4 {[%clk 0:03:02]} 1... c5 {[%clk 0:03:00]} 2. Nf3 {[%clk 0:03:02.5]} 2...
d6 {[%clk 0:03:01.2]} 3. d4 {[%clk 0:03:03.7]} 3... cxd4 {[%clk 0:03:02.7]} 4.
Nxd4 {[%clk 0:03:05.6]} 4... Nf6 {[%clk 0:03:04.2]} 5. Nc3 {[%clk 0:03:07.2]}
5... a6 {[%clk 0:03:05.8]} 6. Be3 {[%clk 0:03:08.6]} 6... e5 {[%clk 0:03:05.8]}
7. Nf3 {[%clk 0:03:09.8]} 7... Nbd7 {[%clk 0:02:58.9]} 8. Bc4 {[%clk 0:03:11.1]}
8... Be7 {[%clk 0:02:58.9]} 9. Bxf7+ {[%clk 0:03:09.3]} 9... Kxf7 {[%clk
0:02:46.6]} 10. Ng5+ {[%clk 0:03:09]} 10... Ke8 {[%clk 0:02:24.5]} 11. Ne6
{[%clk 0:03:09.2]} 11... Qa5 {[%clk 0:02:18.9]} 12. Nxg7+ {[%clk 0:03:10.1]}
12... Kf7 {[%clk 0:02:15.3]} 13. Nf5 {[%clk 0:03:11.1]} 13... d5 {[%clk
0:02:04.4]} 14. exd5 {[%clk 0:02:58.5]} 14... Bb4 {[%clk 0:02:02.6]} 15. O-O
{[%clk 0:02:54.1]} 15... Nb6 {[%clk 0:01:53.6]} 16. Nh6+ {[%clk 0:02:47.3]}
16... Kg6 {[%clk 0:01:48.8]} 17. Qd3+ {[%clk 0:02:39.5]} 17... e4 {[%clk
0:01:46.4]} 18. Nxe4 {[%clk 0:02:33.7]} 18... Qxd5 {[%clk 0:01:31.4]} 19. Nxf6+
{[%clk 0:02:32.1]} 19... Qxd3 {[%clk 0:01:31.6]} 20. cxd3 {[%clk 0:02:33.8]}
20... Kxf6 {[%clk 0:01:32.5]} 21. Bxb6 {[%clk 0:02:34.2]} 21... Kg6 {[%clk
0:01:32.8]} 22. Be3 {[%clk 0:01:46.8]} 22... Bf8 {[%clk 0:01:32.5]} 23. Rac1
{[%clk 0:01:40.6]} 23... Bxh6 {[%clk 0:01:31.4]} 24. Bxh6 {[%clk 0:01:35.1]}
24... Kxh6 {[%clk 0:01:33.3]} 25. Rc7 {[%clk 0:01:36.3]} 25... Bf5 {[%clk
0:01:11.3]} 26. Rxb7 {[%clk 0:01:33.9]} 26... Bxd3 {[%clk 0:01:11.9]} 27. Re1
{[%clk 0:01:33.8]} 27... Rhe8 {[%clk 0:01:11.9]} 28. Rxe8 {[%clk 0:01:22.6]}
28... Rxe8 {[%clk 0:01:12.3]} 29. f3 {[%clk 0:01:22.8]} 29... Bb5 {[%clk
0:01:02.5]} 30. a4 {[%clk 0:01:13.1]} 30... Bxa4 {[%clk 0:00:59.7]} 31. Rb6+
{[%clk 0:01:13.5]} 31... Kg5 {[%clk 0:01:01]} 32. Rxa6 {[%clk 0:01:13.4]} 32...
Bc2 {[%clk 0:00:58.1]} 33. Kf2 {[%clk 0:01:11.4]} 33... Rb8 {[%clk 0:00:58.2]}
34. Ra5+ {[%clk 0:01:07.5]} 34... Kh6 {[%clk 0:00:58.9]} 35. Kg3 {[%clk
0:01:05]} 35... Rxb2 {[%clk 0:00:58.9]} 36. Ra6+ {[%clk 0:01:05.5]} 36... Bg6
{[%clk 0:00:59.2]} 37. Ra5 {[%clk 0:01:03.8]} 37... Bd3 {[%clk 0:00:49.9]} 38.
Ra1 {[%clk 0:01:00.7]} 38... Kg6 {[%clk 0:00:43.6]} 39. Rd1 {[%clk 0:01:00.3]}
39... Be2 {[%clk 0:00:37.7]} 40. Re1 {[%clk 0:00:58.7]} 40... Kf5 {[%clk
0:00:36.7]} 41. Ra1 {[%clk 0:00:58.1]} 41... h5 {[%clk 0:00:32.8]} 42. Ra5+
{[%clk 0:00:56.1]} 42... Bb5 {[%clk 0:00:32.7]} 43. h4 {[%clk 0:00:54.2]} 43...
Kf6 {[%clk 0:00:21.4]} 44. Ra1 {[%clk 0:00:53.6]} 44... Rd2 {[%clk 0:00:20]} 45.
Rb1 {[%clk 0:00:50.5]} 45... Bd3 {[%clk 0:00:18.2]} 46. Rb6+ {[%clk 0:00:49]}
46... Ke7 {[%clk 0:00:14.2]} 47. Rb7+ {[%clk 0:00:37.2]} 47... Kd8 {[%clk
0:00:13]} 48. Rg7 {[%clk 0:00:36.8]} 48... Bf1 {[%clk 0:00:13.4]} 49. Kh2 {[%clk
0:00:37.2]} 49... Be2 {[%clk 0:00:13.2]} 50. Kg3 {[%clk 0:00:36.6]} 50... Bf1
{[%clk 0:00:13.7]} 51. Kh2 {[%clk 0:00:35.2]} 51... Ke8 {[%clk 0:00:14.9]} 52.
Kg1 {[%clk 0:00:33.1]} 52... Bc4 {[%clk 0:00:15.1]} 53. Rg5 {[%clk 0:00:32.1]}
53... Bf7 {[%clk 0:00:15.8]} 54. Kh2 {[%clk 0:00:31.2]} 54... Kf8 {[%clk
0:00:15.9]} 55. Kg3 {[%clk 0:00:32.1]} 55... Rd4 {[%clk 0:00:14.8]} 56. Kh3
{[%clk 0:00:30.1]} 56... Ke7 {[%clk 0:00:15.4]} 57. Kg3 {[%clk 0:00:31.1]} 57...
Kf6 {[%clk 0:00:16.6]} 58. Ra5 {[%clk 0:00:30]} 58... Bg6 {[%clk 0:00:16.3]} 59.
Ra6+ {[%clk 0:00:29.8]} 59... Kg7 {[%clk 0:00:17.4]} 60. Ra7+ {[%clk 0:00:30.5]}
60... Kh6 {[%clk 0:00:18.6]} 61. Ra5 {[%clk 0:00:31.3]} 61... Rd1 {[%clk
0:00:18.7]} 62. Kf2 {[%clk 0:00:29.6]} 62... Rh1 {[%clk 0:00:18.2]} 63. Kg3
{[%clk 0:00:29.2]} 63... Bd3 {[%clk 0:00:19.3]} 64. Rd5 {[%clk 0:00:27.8]} 64...
Bg6 {[%clk 0:00:14.7]} 65. Rd4 {[%clk 0:00:26.3]} 65... Rg1 {[%clk 0:00:15.7]}
66. Kh2 {[%clk 0:00:26.6]} 66... Re1 {[%clk 0:00:16.4]} 67. g4 {[%clk
0:00:23.5]} 67... Re2+ {[%clk 0:00:15.2]} 68. Kg3 {[%clk 0:00:23.8]} 68... hxg4
{[%clk 0:00:16.7]} 69. fxg4 {[%clk 0:00:24.2]} 69... Re3+ {[%clk 0:00:17.5]} 70.
Kf4 {[%clk 0:00:24.5]} 70... Rh3 {[%clk 0:00:17.6]} 71. h5 {[%clk 0:00:22.6]}
71... Bf7 {[%clk 0:00:18.4]} 72. Rd6+ {[%clk 0:00:22.7]} 72... Kg7 {[%clk
0:00:19.4]} 73. Kg5 {[%clk 0:00:23.2]} 73... Rf3 {[%clk 0:00:19.3]} 74. h6+
{[%clk 0:00:20.4]} 74... Kh7 {[%clk 0:00:18.5]} 75. Rf6 {[%clk 0:00:21.5]} 75...
Rxf6 {[%clk 0:00:16.9]} 76. Kxf6 {[%clk 0:00:23.4]} 76... Bg6 {[%clk 0:00:18.5]}
77. g5 {[%clk 0:00:24.1]} 77... Be4 {[%clk 0:00:19.8]} 78. Ke5 {[%clk
0:00:25.2]} 78... Bg6 {[%clk 0:00:21.7]} 79. Kf6 {[%clk 0:00:26.5]} 79... Bb1
{[%clk 0:00:23.2]} 80. Kf7 {[%clk 0:00:27.9]} 80... Bg6+ {[%clk 0:00:25.1]} 81.
Kf8 {[%clk 0:00:29.2]} 81... Bf5 {[%clk 0:00:26]} 82. Kf7 {[%clk 0:00:30.5]}
82... Bg6+ {[%clk 0:00:27.9]} 83. Kf6 {[%clk 0:00:32.4]} 83... Bb1 {[%clk
0:00:28.4]} 84. Kf7 {[%clk 0:00:32.3]} 1/2-1/2